bitfinex-derivatives/quotes_ETHF0:USTF0_20241007
["timestamp","ask_amount","ask_price","bid_price","bid_amount"]
[1728302450432,0.40413,2475.1,2474.9,3.2078]
[1728302450643,0.40413,2475.1,2474.2,1.01066]
[1728302450644,11.1286,2475.0,2473.9,3.4108]
[1728302450828,3.88,2474.1,2473.4,3.4108]
[1728302451035,3.88,2473.6,2473.4,3.2078]
[1728302451230,3.2078,2474.3,2473.4,3.2078]
[1728302451533,1.748,2475.2,2474.2,3.2078]
[1728302451730,2.15211,2475.2,2474.6,0.40419]
[1728302452230,4.218,2475.4,2474.5,3.2078]
[1728302452438,0.40412,2475.2,2474.8,3.2078]
[1728302452741,0.4041,2475.2,2474.8,3.2078]
[1728302452939,2.75824,2475.3,2474.5,0.40421]
[1728302452940,0.40413,2475.1,2474.6,0.4042]
[1728302453141,0.40414,2475.0,2474.5,3.61201]
[1728302453339,7.0878,2475.4,2474.5,3.61201]
[1728302453340,1.748,2474.9,2474.5,7.2486]
[1728302453542,1.748,2474.9,2474.6,0.40419]
[1728302453837,1.748,2474.9,2474.6,4.44499]
[1728302454040,3.2078,2475.4,2474.7,4.0408]
[1728302454243,2.75823,2475.3,2474.5,3.61201]
[1728302454435,0.40414,2475.0,2474.5,3.61201]
[1728302454738,1.748,2474.9,2474.5,3.61202]
[1728302454946,1.748,2474.9,2474.5,3.2078]
[1728302455240,1.01028,2475.2,2474.8,3.61196]
[1728302455241,0.40411,2475.2,2474.8,3.61196]
[1728302455439,0.4041,2475.3,2475.1,3.2078]
[1728302455750,0.4041,2475.3,2474.9,1.34505]
[1728302455945,0.40412,2475.2,2475.0,4.04]
[1728302456238,0.40412,2475.1,2475.0,4.04]
[1728302456429,0.40412,2475.1,2474.9,0.9409]
[1728302456634,0.40412,2475.1,2475.0,4.0408]
[1728302457034,0.40412,2475.1,2475.0,10.0408]
[1728302457241,0.40412,2475.1,2475.0,4.0408]
[1728302457548,0.40412,2475.1,2475.0,10.0408]
[1728302458038,1.01017,2475.5,2475.0,10.0408]
[1728302458238,0.4041,2475.3,2475.1,3.2078]
[1728302458636,1.01017,2475.5,2475.2,4.04]
[1728302458637,0.40408,2475.4,2475.2,4.04]
[1728302458943,4.16003,2475.8,2475.1,9.2078]
[1728302458944,1.01006,2475.7,2475.1,3.2078]
[1728302459247,0.4041,2475.2,2475.1,3.2078]
[1728302459641,0.4041,2475.2,2475.1,13.2478]
[1728302460041,1.01017,2475.5,2475.1,13.2478]
[1728302460242,0.4041,2475.3,2475.1,3.2078]
[1728302460443,1.01017,2475.5,2475.1,3.2078]
[1728302460741,0.4041,2475.2,2475.1,3.2078]
[1728302461143,0.4041,2475.2,2475.1,13.2478]
[1728302461344,0.4041,2475.3,2475.1,13.2478]
[1728302461644,0.4041,2475.3,2475.1,3.2078]
[1728302461645,0.40409,2475.3,2475.1,3.2078]
[1728302461842,0.40409,2475.3,2475.2,4.04]
[1728302462248,1.832,2476.0,2475.2,13.19]
[1728302462542,0.404,2475.9,2475.7,3.2078]
[1728302462741,0.404,2475.9,2475.8,1.0157]
[1728302463048,1.924,2476.3,2475.9,0.40399]
[1728302463343,3.2078,2477.0,2475.9,0.40399]
[1728302463344,1.923,2476.8,2476.1,6.3578]
[1728302463548,0.40387,2476.7,2476.4,3.2078]
[1728302463851,0.40388,2476.6,2476.5,1.0157]
[1728302464043,3.55388,2476.6,2476.5,1.0157]
[1728302464249,3.55388,2476.6,2476.2,0.9366]
[1728302464250,0.4039,2476.5,2476.2,0.9366]
[1728302465046,0.40392,2476.4,2476.1,1.0157]
[1728302465249,0.40393,2476.3,2476.1,1.0157]
[1728302465544,4.88975,2476.5,2476.1,1.0157]
[1728302465751,1.00978,2476.4,2475.9,3.2078]
[1728302466050,0.40391,2476.4,2475.9,3.61179]
[1728302466239,0.40391,2476.4,2475.9,3.2078]
[1728302466440,0.40394,2476.2,2475.9,3.2078]
[1728302467147,1.923,2476.3,2475.9,3.2078]
[1728302467446,1.923,2476.3,2476.0,0.40397]
[1728302467645,1.923,2476.3,2475.9,3.2078]
[1728302467646,2.32693,2476.3,2475.9,3.2078]
[1728302467849,2.32694,2476.3,2475.9,3.2078]
[1728302468050,0.40394,2476.2,2475.9,3.2078]
[1728302468249,1.923,2476.3,2475.9,3.2078]
[1728302468450,0.40394,2476.2,2475.9,3.2078]
[1728302468646,1.923,2476.3,2475.9,3.2078]
[1728302468851,0.40395,2476.2,2475.9,3.2078]
[1728302469253,0.40397,2476.1,2475.9,3.2078]
[1728302469550,0.40397,2476.0,2475.9,3.2078]
[1728302470051,0.404,2475.9,2475.3,4.61798]
[1728302470351,7.9192,2476.0,2475.3,4.2139]
[1728302470352,3.88,2476.0,2475.3,4.2139]
[1728302470553,3.88,2476.0,2475.4,0.40407]
[1728302470751,4.28399,2476.0,2475.4,0.40407]
[1728302470953,0.404,2475.9,2475.3,4.61798]
[1728302471351,3.88,2476.0,2475.3,4.61798]
[1728302471549,3.88,2476.0,2475.3,4.2139]
[1728302471750,0.40401,2475.8,2475.3,4.61798]
[1728302471950,3.88,2476.0,2475.3,4.2139]
[1728302472147,0.40401,2475.8,2475.3,4.61798]
[1728302472347,0.404,2475.9,2475.4,0.40407]
[1728302472548,3.88,2476.0,2475.4,0.40407]
[1728302472549,0.40401,2475.8,2475.4,0.40407]
[1728302472849,3.88,2476.0,2475.3,4.2139]
[1728302472850,0.40402,2475.7,2475.3,4.2139]
[1728302473247,0.40402,2475.8,2475.3,4.61798]
[1728302473649,3.2078,2475.9,2475.3,4.2139]
[1728302473855,0.40402,2475.8,2475.3,4.61799]
[1728302474154,3.2078,2475.9,2475.3,4.2139]
[1728302474359,0.40403,2475.7,2475.3,4.2139]
[1728302474753,0.40403,2475.7,2475.2,0.40409]
[1728302475048,0.40401,2475.8,2475.3,0.40408]
[1728302475257,1.01002,2475.8,2475.1,0.40411]
[1728302475554,1.01002,2475.8,2475.0,1.0272]
[1728302475747,4.2109,2475.9,2475.0,1.0272]
[1728302475947,4.2109,2475.9,2475.2,3.61189]
[1728302475948,0.40402,2475.7,2475.2,3.61189]
[1728302476150,4.2109,2475.9,2475.0,1.0272]
[1728302476354,1.0031,2475.9,2475.2,3.2078]
[1728302476550,1.0031,2475.9,2475.5,0.40404]
[1728302476944,1.923,2475.9,2475.6,0.40403]
[1728302477151,1.923,2475.9,2475.5,3.61184]
[1728302477457,1.923,2475.9,2475.6,0.40403]
[1728302478059,1.923,2475.9,2475.5,3.61184]
[1728302478458,2.32699,2475.9,2475.5,3.61184]
[1728302478655,1.923,2475.9,2475.3,0.9696]
[1728302478862,1.923,2475.9,2475.5,0.40405]
[1728302478863,2.327,2475.9,2475.5,0.40405]
[1728302479054,0.40401,2475.8,2475.5,0.40405]
[1728302479255,1.923,2475.8,2475.3,0.9696]
[1728302479563,2.32701,2475.8,2475.4,0.40406]
[1728302479859,2.32702,2475.8,2475.4,0.40406]
[1728302480162,0.40402,2475.7,2475.4,0.40406]
[1728302480564,1.923,2475.8,2475.4,0.40406]
[1728302481060,0.40402,2475.7,2475.4,0.40406]
[1728302481657,0.40402,2475.7,2475.3,0.9696]
[1728302481862,0.40402,2475.7,2475.4,0.40406]
[1728302482056,1.923,2475.8,2475.3,0.9696]
[1728302482255,1.923,2475.8,2475.5,3.2078]
[1728302482455,0.40403,2475.7,2475.4,0.40406]
[1728302482665,1.923,2475.8,2475.3,0.9696]
[1728302482857,2.93304,2475.8,2475.3,0.9696]
[1728302483162,0.40404,2475.7,2475.5,3.2078]
[1728302485071,0.40404,2475.7,2475.5,3.61185]
[1728302485566,0.40404,2475.6,2475.5,3.2078]
[1728302485863,0.40404,2475.7,2475.4,0.40406]
[1728302486054,2.93303,2475.8,2475.3,0.9696]
[1728302486253,0.40405,2475.6,2475.3,1.37368]
[1728302486659,3.15,2475.7,2475.0,1.01035]
[1728302486859,0.40405,2475.6,2475.3,0.40408]
[1728302487767,3.15,2475.7,2475.2,3.2078]
[1728302488069,4.16007,2475.7,2475.2,3.2078]
[1728302488265,0.40404,2475.6,2475.3,0.40408]
[1728302488767,0.40406,2475.5,2475.2,3.61189]
[1728302488961,0.40404,2475.6,2475.3,0.40409]
[1728302489362,0.40406,2475.5,2475.2,3.61189]
[1728302489860,0.40406,2475.5,2475.2,3.2078]
[1728302490160,4.16007,2475.7,2475.2,3.2078]
[1728302490374,0.40408,2475.4,2475.2,3.2078]
[1728302490671,0.40408,2475.4,2475.1,0.40412]
[1728302491168,0.40408,2475.4,2474.9,4.2531]
[1728302491366,0.40407,2475.5,2475.2,0.4041]
[1728302491668,1.0101,2475.6,2475.2,0.4041]
[1728302491969,0.40407,2475.5,2475.2,0.4041]
[1728302492469,1.0101,2475.6,2474.9,5.26349]
[1728302492470,0.40408,2475.4,2475.1,0.40411]
[1728302492972,1.0101,2475.6,2474.9,5.26349]
[1728302493166,0.40408,2475.4,2475.1,0.40412]
[1728302493366,3.15,2475.4,2474.9,4.2531]
[1728302493576,3.15,2475.4,2474.9,1.0453]
[1728302493760,3.55408,2475.4,2475.1,3.61191]
[1728302494669,3.15,2475.4,2475.1,3.61191]
[1728302494876,3.15,2475.4,2475.1,3.2078]
[1728302495567,3.55408,2475.4,2475.1,3.61191]
[1728302496262,3.15,2475.4,2474.9,1.0453]
[1728302496867,0.40409,2475.3,2475.0,0.40413]
[1728302497472,3.15,2475.4,2475.2,0.4041]
[1728302497666,3.15,2475.4,2475.0,3.2078]
[1728302497667,1.758,2475.3,2475.0,3.2078]
[1728302497865,1.758,2475.3,2475.2,0.4041]
[1728302498176,2.16209,2475.3,2475.0,3.61192]
[1728302498568,3.55408,2475.4,2475.1,0.40412]
[1728302498770,2.16209,2475.3,2475.0,3.61193]
[1728302498967,1.758,2475.3,2475.0,3.61193]
[1728302499163,1.758,2475.3,2475.1,0.40412]
[1728302499575,1.758,2475.3,2475.0,3.61193]
[1728302499972,1.758,2475.3,2475.0,0.40413]
[1728302500174,2.16209,2475.3,2475.0,0.40413]
[1728302500370,2.16209,2475.3,2475.0,3.61193]
[1728302500781,3.15,2475.1,2474.9,1.0453]
[1728302500972,3.55412,2475.1,2474.9,1.0453]
[1728302501167,0.40414,2475.0,2474.9,1.0453]
[1728302502079,0.40414,2475.0,2474.3,4.1766]
[1728302502080,4.36677098,2475.1,2474.3,4.1766]
[1728302502271,3.55418,2474.8,2474.4,1.35332]
[1728302502470,0.4042,2474.6,2474.4,0.9491]
[1728302502876,4.16046,2474.8,2474.4,0.9491]
[1728302503066,0.40421,2474.6,2474.4,0.9491]
[1728302503266,0.40422,2474.5,2474.4,0.9491]
[1728302503882,2.08922,2474.5,2474.4,0.9491]
[1728302504177,0.40424,2474.4,2474.0,3.61209]
[1728302504376,0.40425,2474.4,2474.0,3.61209]
[1728302504576,0.40427,2474.2,2474.0,3.2078]
[1728302504976,3.15,2474.2,2474.0,3.2078]
[1728302505179,3.15,2474.2,2473.9,1.0298]
[1728302505480,0.40428,2474.1,2473.9,1.0298]
[1728302505675,0.4043,2474.0,2473.9,1.0298]
[1728302506471,4.16069,2474.2,2473.6,3.61216]
[1728302506673,3.55431,2474.0,2473.6,3.61216]
[1728302506877,0.40432,2473.9,2473.6,3.2078]
[1728302507082,1.685,2473.8,2473.6,3.2078]
[1728302507683,2.08934,2473.8,2473.6,3.2078]
[1728302507877,1.685,2473.8,2473.6,3.2078]
[1728302508184,2.08934,2473.8,2473.6,3.2078]
[1728302508774,0.40435,2473.7,2473.6,3.2078]
[1728302511282,0.40439,2473.5,2473.1,0.40445]
[1728302511471,5.0533,2473.7,2473.0,0.9756]
[1728302511472,3.15,2473.6,2473.0,0.9756]
[1728302511674,0.4044,2473.5,2473.0,1.38006]
[1728302512177,0.4044,2473.4,2473.0,1.38006]
[1728302512578,3.15,2473.4,2473.0,0.9756]
[1728302512779,0.4044,2473.4,2473.0,1.38005]
[1728302513580,0.40441,2473.4,2473.0,1.38005]
[1728302514291,0.40441,2473.4,2473.0,0.9756]
[1728302514292,3.55444,2473.2,2473.0,0.9756]
[1728302514581,2.09045,2473.1,2473.0,0.9756]
[1728302514779,1.686,2473.1,2473.0,0.9756]
[1728302514987,2.09045,2473.1,2473.0,0.9756]
[1728302515375,2.09045,2473.1,2472.8,1.0178]
[1728302515581,2.09045,2473.1,2472.8,1.4223]
[1728302515785,0.40447,2473.0,2472.8,1.0178]
[1728302516285,1.686,2473.1,2472.6,3.2078]
[1728302516487,0.40448,2472.9,2472.6,3.61232]
[1728302516879,0.40448,2472.9,2472.6,3.2078]
[1728302517080,3.15,2473.0,2472.6,3.2078]
[1728302517281,3.55448,2473.0,2472.6,3.61232]
[1728302517480,0.40448,2472.9,2472.6,3.61232]
[1728302517785,3.15,2473.0,2472.6,3.61232]
[1728302517988,3.15,2473.0,2472.6,3.2078]
[1728302518178,3.55447,2473.0,2472.6,3.61231]
[1728302518377,3.15,2473.0,2472.6,3.61231]
[1728302518574,3.55448,2473.0,2472.6,3.61231]
[1728302518781,0.40448,2472.9,2472.6,3.61231]
[1728302518980,3.61219,2473.5,2473.2,0.40443]
[1728302519179,4.2386,2473.9,2473.3,3.2078]
[1728302519392,4.64292,2473.9,2473.5,0.40438]
[1728302519688,0.40434,2473.8,2473.3,4.6422]
[1728302519886,3.15,2473.8,2473.3,4.2378]
[1728302520099,3.2078,2474.3,2473.6,6.3578]
[1728302520285,3.2078,2474.3,2473.9,3.2078]
[1728302520586,0.4043,2474.0,2473.6,3.2078]
[1728302520785,5.2403,2474.0,2473.5,0.40438]
[1728302520987,5.2403,2474.0,2473.8,0.40432]
[1728302520988,1.686,2474.0,2473.8,0.40432]
[1728302521190,3.15,2474.4,2474.0,0.40429]
[1728302521382,1.686,2474.2,2474.0,0.40429]
[1728302521588,1.686,2474.2,2474.0,1.44419]
[1728302521791,1.686,2474.2,2474.0,1.0399]
[1728302521985,4.836,2474.2,2474.0,1.0399]
[1728302522687,1.686,2474.2,2474.0,1.0399]
[1728302523189,5.24028,2474.2,2473.6,3.61216]
[1728302523387,4.836,2474.2,2473.6,3.2078]
[1728302523585,4.836,2474.2,2473.6,3.61216]
[1728302523586,0.40429,2474.1,2473.6,3.61216]
[1728302524388,3.55431,2474.0,2473.6,3.2078]
[1728302524589,3.55431,2474.0,2473.6,3.61216]
[1728302524788,3.55431,2474.0,2473.6,3.2078]
[1728302524989,3.15,2473.7,2473.6,3.2078]
[1728302525888,3.15,2473.7,2473.6,3.61217]
[1728302526092,5.3494,2474.1,2473.7,0.40433]
[1728302526093,3.15,2473.9,2473.7,0.40433]
[1728302526387,3.15,2473.9,2473.8,0.40433]
[1728302526589,3.15,2473.9,2473.6,3.2078]
[1728302526797,3.15,2473.9,2473.6,3.61216]
[1728302527386,3.15,2473.9,2473.7,0.40435]
[1728302527589,3.55432,2473.9,2473.6,3.2078]
[1728302528689,3.15,2473.9,2473.6,3.61216]
[1728302528891,3.15,2473.9,2473.6,3.2078]
[1728302529092,3.15,2473.9,2473.6,3.61215]
[1728302529492,3.55432,2473.9,2473.6,3.2078]
[1728302529691,3.15,2473.9,2473.6,3.2078]
[1728302529890,3.34355713,2474.1,2473.6,3.2078]
[1728302529891,3.15,2473.7,2473.6,3.2078]
[1728302530097,3.55435,2473.7,2473.6,3.2078]
[1728302530297,7.59675,2473.7,2473.6,3.2078]
[1728302530501,13.59675,2473.7,2473.6,3.2078]
[1728302530693,13.1924,2473.7,2472.9,3.2078]
[1728302530890,3.15,2473.3,2472.9,3.2078]
[1728302531091,1.686,2473.2,2472.9,3.2078]
[1728302531299,1.686,2473.2,2473.0,0.40446]
[1728302532188,1.686,2473.2,2472.9,3.2078]
[1728302532394,1.686,2473.2,2473.0,0.40446]
[1728302532595,1.686,2473.2,2472.9,3.2078]
[1728302532795,1.686,2473.2,2472.9,3.61228]
[1728302533099,1.686,2473.2,2473.0,0.40446]
[1728302533898,3.15,2473.3,2472.9,3.2078]
[1728302534097,2.0264,2473.4,2473.1,0.40444]
[1728302534398,1.622,2473.4,2473.1,0.40444]
[1728302534597,2.0264,2473.4,2473.1,0.40444]
[1728302534794,1.622,2473.4,2472.9,3.2078]
[1728302534996,4.772,2473.5,2473.4,0.4044]
[1728302535294,4.772,2473.5,2473.3,3.2078]
[1728302535295,1.622,2473.5,2473.3,3.2078]
[1728302535701,4.772,2473.5,2473.3,3.2078]
[1728302535896,4.772,2473.5,2473.3,3.6122]
[1728302536096,4.772,2473.5,2473.3,3.61221]
[1728302536403,4.772,2473.5,2473.3,3.2078]
[1728302537003,5.17639,2473.5,2473.3,3.2078]
[1728302537195,4.772,2473.5,2473.3,3.2078]
[1728302537608,5.17639,2473.5,2473.3,3.2078]
[1728302538105,8.8152,2473.5,2473.3,3.2078]
[1728302538603,9.21958,2473.5,2473.3,3.2078]
[1728302539001,5.17638,2473.5,2473.3,3.2078]
[1728302539198,8.8152,2473.5,2473.3,3.2078]
[1728302539394,4.772,2473.5,2473.3,3.2078]
[1728302539904,5.17639,2473.5,2473.3,3.2078]
[1728302540590,4.772,2473.5,2473.3,3.2078]
[1728302540996,5.17639,2473.5,2473.3,3.2078]
[1728302541307,0.4044,2473.4,2473.3,3.2078]
[1728302541501,5.17639,2473.5,2473.3,3.2078]
[1728302541798,3.15,2473.7,2473.3,3.2078]
[1728302541997,1.622,2473.5,2473.4,0.4044]
[1728302542304,1.21763,2473.5,2473.4,0.4044]
[1728302542505,1.21763,2473.5,2473.3,4.63021]
[1728302542695,1.21763,2473.5,2473.3,4.2258]
[1728302542891,0.40437,2473.6,2473.3,4.2258]
[1728302543103,1.622,2473.5,2473.3,4.2258]
[1728302543400,1.622,2473.5,2473.4,0.4044]
[1728302543804,1.622,2473.5,2473.3,4.6302]
[1728302544896,1.622,2473.5,2473.3,4.2258]
[1728302545097,1.622,2473.5,2473.3,4.6302]
[1728302545296,1.622,2473.5,2473.4,0.4044]
[1728302545496,4.772,2473.5,2473.3,4.2258]
[1728302546097,4.772,2473.5,2473.3,4.63021]
[1728302546694,4.772,2473.5,2473.0,3.2078]
[1728302546897,3.15,2473.1,2472.8,1.0514]
[1728302547099,3.15,2473.1,2472.9,0.40447]
[1728302547407,3.55445,2473.1,2472.8,1.45589]
[1728302547802,3.55446,2473.1,2472.8,1.0514]
[1728302548001,3.15,2473.1,2472.8,0.40449]
[1728302548507,3.55445,2473.1,2472.8,0.40449]
[1728302549307,3.55445,2473.1,2472.7,0.4045]
[1728302549701,3.55445,2473.1,2472.6,3.2078]
[1728302549905,3.55445,2473.1,2472.8,0.40449]
[1728302550706,3.55445,2473.1,2472.6,3.2078]
[1728302551106,3.55445,2473.1,2472.8,0.40449]
[1728302551314,3.15,2473.1,2472.6,3.2078]
[1728302551912,3.15,2472.9,2472.7,0.4045]
[1728302552209,1.623,2472.8,2472.7,0.4045]
[1728302552408,1.623,2472.8,2472.6,3.2078]
[1728302552715,1.623,2472.8,2472.7,0.40451]
[1728302553716,1.623,2472.8,2472.6,3.2078]
[1728302553917,9.82825,2472.8,2472.3,3.2078]
[1728302554108,3.15,2472.6,2472.4,0.40455]
[1728302554414,3.55453,2472.6,2472.3,3.61237]
[1728302554813,3.55453,2472.6,2472.3,3.61236]
[1728302555110,3.15,2472.4,2472.3,3.2078]
[1728302555709,3.15,2472.4,2472.3,3.61238]
[1728302555909,3.15,2472.4,2472.3,3.2078]
[1728302557011,1.542,2472.4,2472.3,3.61238]
[1728302557214,1.542,2473.0,2472.3,16.4026]
[1728302557408,13.266,2473.3,2472.7,3.2078]
[1728302557409,10.116,2473.3,2472.7,3.2078]
[1728302557608,10.116,2473.3,2473.0,3.2078]
[1728302557907,10.116,2473.3,2473.2,0.40443]
[1728302558414,3.55436,2473.7,2473.4,0.4044]
[1728302558621,3.55436,2473.7,2473.3,4.63391]
[1728302558622,1.94637,2473.6,2473.3,4.63391]
[1728302558920,0.40439,2473.5,2473.3,4.2295]
[1728302559111,5.09639,2473.5,2473.3,4.2295]
[1728302559420,4.692,2473.5,2473.3,4.2295]
[1728302559606,0.4044,2473.4,2473.3,4.2295]
[1728302559808,4.692,2473.5,2473.3,1.0217]
[1728302560010,0.4044,2473.4,2473.3,1.0217]
[1728302560218,1.9464,2473.4,2473.3,1.0217]
[1728302561214,1.9464,2473.4,2473.1,1.1164]
[1728302561215,0.40441,2473.3,2473.1,1.1164]
[1728302561419,0.40441,2473.3,2473.0,3.61225]
[1728302563015,0.40443,2473.2,2473.0,3.61225]
[1728302563707,0.40443,2473.2,2473.0,3.2078]
[1728302563907,4.692,2473.4,2473.0,3.61226]
[1728302563908,0.40443,2473.3,2473.0,3.61226]
[1728302564115,1.542,2473.3,2473.2,0.40442]
[1728302565316,1.542,2473.3,2473.0,3.2078]
[1728302565519,1.542,2473.3,2473.1,0.40444]
[1728302565520,1.94642,2473.3,2473.1,0.40444]
[1728302565712,1.94642,2473.3,2473.0,3.2078]
[1728302566016,5.09642,2473.3,2473.0,3.61225]
[1728302566419,0.40443,2473.2,2473.0,3.2078]
[1728302566619,5.09643,2473.3,2473.0,3.61225]
[1728302567214,4.692,2473.3,2473.0,3.2078]
[1728302567417,5.70308,2473.3,2472.9,0.40448]
[1728302567722,0.40444,2473.2,2472.9,0.40448]
[1728302568119,0.40446,2473.1,2472.8,1.48959]
[1728302568318,0.40447,2473.0,2472.8,1.48959]
[1728302568524,0.40447,2473.0,2472.9,3.2078]
[1728302568714,3.55446,2473.1,2472.9,3.61228]
[1728302568913,3.55446,2473.1,2472.9,3.2078]
[1728302569124,3.15,2473.1,2472.9,3.2078]
[1728302569329,3.55446,2473.1,2472.9,3.2078]
[1728302569818,3.15,2473.1,2472.9,3.2078]
[1728302570519,3.55445,2473.1,2472.9,3.2078]
[1728302570716,3.15,2473.1,2472.9,3.2078]
[1728302570925,0.40446,2473.0,2472.8,1.0851]
[1728302571325,0.40446,2473.0,2472.2,3.2078]
[1728302571326,7.194,2472.9,2472.2,3.2078]
[1728302571526,3.15,2472.6,2472.4,0.40455]
[1728302571719,4.692,2472.6,2472.4,0.40455]
[1728302571923,0.40455,2472.5,2472.2,4.74209]
[1728302572121,4.692,2472.6,2472.3,0.40458]
[1728302572122,5.09654,2472.6,2472.3,0.40458]
[1728302572422,5.09654,2472.6,2472.2,4.3375]
[1728302572423,3.15,2472.4,2472.2,4.3375]
[1728302572623,3.15,2472.4,2472.2,4.74208]
[1728302573019,3.55457,2472.4,2472.2,3.2078]
[1728302573925,3.15,2472.4,2472.2,3.2078]
[1728302574122,3.55456,2472.4,2472.2,3.2078]
[1728302574427,3.15,2472.4,2472.2,3.2078]
[1728302574623,3.55456,2472.4,2472.2,3.2078]
[1728302575028,3.15,2472.4,2472.2,3.2078]
[1728302575220,3.15,2472.4,2471.9,3.2078]
[1728302575424,3.55457,2472.4,2471.9,3.2078]
[1728302575722,0.19822781,2472.4,2472.0,1.01157]
[1728302575927,1.473,2472.8,2472.3,6.3578]
[1728302576124,5.02751,2472.8,2472.3,3.2078]
[1728302576321,0.40453,2472.7,2472.3,3.2078]
[1728302577122,4.623,2472.8,2472.3,3.2078]
[1728302577325,3.55454,2472.6,2472.3,3.2078]
[1728302577531,0.40455,2472.5,2472.3,3.2078]
[1728302578126,4.68124,2472.6,2472.3,3.2078]
[1728302578831,0.40455,2472.5,2472.3,3.2078]
[1728302579026,4.2767,2472.6,2472.3,3.2078]
[1728302579330,0.40455,2472.5,2472.3,3.2078]
[1728302580025,4.2767,2472.6,2472.3,3.2078]
[1728302580221,0.40455,2472.5,2472.3,3.2078]
[1728302581428,3.55456,2472.4,2472.3,3.2078]
[1728302581728,3.55456,2472.4,2471.9,3.61243]
[1728302581729,0.40458,2472.3,2471.9,3.61243]
[1728302582231,3.15,2472.4,2471.9,3.61243]
[1728302582232,3.15,2472.2,2471.9,3.2078]
[1728302582419,1.87762,2472.1,2471.9,3.2078]
[1728302582637,0.40463,2472.0,2471.9,3.2078]
[1728302582923,0.40463,2472.0,2471.8,1.1297]
[1728302583126,1.473,2472.1,2471.8,1.1297]
[1728302583631,0.40463,2472.0,2471.8,1.1297]
[1728302584135,1.473,2472.1,2471.8,1.1297]
[1728302584631,3.34875849,2472.4,2471.9,3.2078]
[1728302584831,1.473,2472.3,2471.9,3.2078]
[1728302585027,1.473,2472.3,2471.9,3.61244]
[1728302585238,1.01149,2472.2,2471.9,3.2078]
[1728302585528,6.3578,2472.1,2471.4,3.2078]
[1728302585730,3.15,2471.5,2471.1,3.2078]
[1728302585934,3.55476,2471.2,2471.0,1.0707]
[1728302586230,2.48483,2471.4,2470.7,3.2078]
[1728302586231,3.15,2471.1,2470.7,3.2078]
[1728302586735,3.15,2470.8,2470.7,3.61263]
[1728302587238,3.26077,2471.3,2470.7,3.61263]
[1728302587239,3.15,2471.0,2470.9,0.4048]
[1728302587428,3.15,2471.0,2470.7,3.2078]
[1728302587937,3.15,2471.0,2470.9,0.40481]
[1728302588233,3.15,2471.0,2470.8,0.40482]
[1728302588432,1.474,2470.9,2470.8,0.40482]
[1728302588636,2.15668,2471.3,2470.7,3.2078]
[1728302588931,0.40479,2471.1,2470.8,0.40482]
[1728302589135,1.1448,2471.3,2470.7,3.2078]
[1728302589329,1.1448,2471.3,2471.0,0.40479]
[1728302589330,1.474,2471.2,2471.0,0.40479]
[1728302589527,1.474,2471.2,2471.1,1.0938]
[1728302590034,0.40472,2471.5,2471.1,5.54497]
[1728302590229,1.474,2471.3,2471.1,2.2457]
[1728302590538,0.40475,2471.3,2471.1,2.2457]
[1728302590838,0.40476,2471.2,2471.1,1.0938]
[1728302592131,1.474,2471.4,2471.1,1.0938]
[1728302592328,1.474,2471.3,2471.1,5.1402]
[1728302592936,0.40472,2471.5,2471.1,1.49857]
[1728302593143,1.474,2471.2,2471.1,1.0938]
[1728302593636,1.474,2471.2,2471.1,1.49857]
[1728302593842,1.474,2471.2,2470.6,1.55675]
[1728302593843,0.40479,2471.0,2470.6,1.55675]
[1728302594030,0.40479,2471.0,2470.8,1.1456]
[1728302594530,1.474,2470.9,2470.8,1.1456]
[1728302595333,1.474,2471.2,2471.0,0.40479]
[1728302595527,1.474,2471.2,2470.8,4.3534]
[1728302595736,1.474,2471.2,2470.8,1.1456]
[1728302596337,0.40479,2471.0,2470.8,1.1456]
[1728302596532,1.474,2471.2,2470.8,1.1456]
[1728302596740,0.40478,2471.1,2470.8,1.55042]
[1728302597141,1.474,2471.1,2470.9,0.4048]
[1728302597442,1.474,2471.1,2471.0,0.40479]
[1728302597741,1.474,2471.1,2470.9,3.6126]
[1728302598435,1.87878,2471.1,2470.9,3.2078]
[1728302598939,1.87878,2471.1,2470.8,1.1456]
[1728302598940,0.4048,2471.0,2470.8,1.1456]
[1728302599839,1.474,2471.1,2470.6,1.1519]
[1728302599840,6.37595,2471.1,2470.6,1.1519]
[1728302600139,6.5177,2471.1,2470.3,4.2766]
[1728302600330,0.40486,2470.6,2470.3,4.2766]
[1728302600534,0.40486,2470.6,2470.4,0.40489]
[1728302600840,0.40488,2470.5,2470.3,4.2766]
[1728302601134,1.474,2470.4,2470.3,4.2766]
[1728302601339,1.474,2470.4,2470.3,4.68151]
[1728302602538,1.474,2470.4,2470.3,4.2766]
[1728302602732,1.87889,2470.4,2470.3,4.2766]
[1728302602938,1.87889,2470.4,2470.3,3.2078]
[1728302603139,1.474,2470.4,2470.3,3.2078]
[1728302603340,1.468,2470.4,2470.3,3.6127]
[1728302603640,1.87289,2470.4,2470.3,3.2078]
[1728302603834,1.468,2470.4,2470.3,3.61271]